{"text_format":"1","workbook":"xlsx","n_sheets":3,"sheets":["PS 101","Kategorie monitoringu","hide"],"not_rendered":{"charts":0,"images":0,"macros":1,"external_links":0,"defined_names":5,"comments":1,"pivot_tables":0},"unopened":[],"bounds":{"document_bytes":16777216,"sheet_cells":100000,"rows_first":2000,"rows_last":500,"rows_between":2000,"halvings":0,"cell_chars":16384,"cell_head_chars":4096},"cells_cut":0,"cells_raw":0,"read":"whole","date_system":"1900"}

{"sheet":"PS 101","index":0,"n_rows":116,"n_cols":12,"rows_kept":116,"cut":false,"hidden":false,"merged":[[9,6,11,6],[9,4,11,4],[7,8,7,9],[0,1,0,7],[1,1,1,2],[1,8,1,9],[1,10,1,11],[9,10,10,11],[9,8,11,8],[9,9,11,9],[3,1,3,3],[4,8,4,9],[4,5,4,7],[6,1,6,3],[9,1,11,1],[9,7,11,7],[9,2,11,2],[9,3,11,3],[8,1,8,9],[6,8,6,9],[3,8,3,9],[9,5,11,5],[2,10,2,11],[5,8,5,9],[5,5,5,7],[6,5,6,7],[7,1,7,3],[7,6,7,7]]}
[null,"SOUPIS PRACÍ / ROZPOČET",null,null,null,null,null,null,null,null,null,{"$f":"D3","v":"PS 101"}]
[null,"Stavba:",null,null,null,"Sanace náspu Pastuchovice trati Plzeň - Žatec",null,null,"CELKEM:",null,{"$f":"SUMIFS(L:L,B:B,\"SOUČET\")","v":4627302.12}]
[null,"SO/PS:",null,"PS 101",null,"PS 101 Přeložka drážních kabelů"]
[null,"Kategorie monitoringu:",null,null,null,{"$f":"IF(E4='Kategorie monitoringu'!A1,'Kategorie monitoringu'!B1,IF(E4='Kategorie monitoringu'!A2,'Kategorie monitoringu'!B2,IF(E4='Kategorie monitoringu'!A3,'Kategorie monitoringu'!B3,IF(E4='Kategorie monitoringu'!A4,'Kategorie monitoringu'!B4,IF(E4='Kategorie monitoringu'!A5,'Kategorie monitoringu'!B5,IF(E4='Kategorie monitoringu'!A6,'Kategorie monitoringu'!B6,IF(E4='Kategorie monitoringu'!A7,'Kategorie monitoringu'!B7,IF(E4='Kategorie monitoringu'!A8,'Kategorie monitoringu'!B8,IF(E4='Kategorie monitoringu'!A9,'Kategorie monitoringu'!B9,IF(E4='Kategorie monitoringu'!A10,'Kategorie monitoringu'!B10,IF(E4='Kategorie monitoringu'!A11,'Kategorie monitoringu'!B11,IF(E4='Kategorie monitoringu'!A12,'Kategorie monitoringu'!B12,IF(E4='Kategorie monitoringu'!A13,'Kategorie monitoringu'!B13,IF(E4='Kategorie monitoringu'!A14,'Kategorie monitoringu'!B14,IF(E4='Kategorie monitoringu'!A15,'Kategorie monitoringu'!B15,IF(E4='Kategorie monitoringu'!A16,'Kategorie monitoringu'!B16,IF(E4='Kategorie monitoringu'!A17,'Kategorie monitoringu'!B17,IF(E4='Kategorie monitoringu'!A18,'Kategorie monitoringu'!B18,IF(E4='Kategorie monitoringu'!A19,'Kategorie monitoringu'!B19,IF(E4='Kategorie monitoringu'!A20,'Kategorie monitoringu'!B20,IF(E4='Kategorie monitoringu'!A21,'Kategorie monitoringu'!B21,IF(E4='Kategorie monitoringu'!A22,'Kategorie monitoringu'!B22,IF(E4='Kategorie monitoringu'!A23,'Kategorie monitoringu'!B23,IF(E4='Kategorie monitoringu'!A24,'Kategorie monitoringu'!B24,IF(E4='Kategorie monitoringu'!A25,'Kategorie monitoringu'!B25,\"\")))))))))))))))))))))))))","v":""},null,null,"Klasifikace SO/PS:"]
[null,"Stupeň dokumentace:",null,null,"Stádium 3",{"$f":"IF((E5=\"Stádium 2\"),\"  Dokumentace pro územní řízení - DUR\",(IF((E5=\"Stádium 3\"),\"  Projektová dokumentace (DOS/DSP)\",\"\")))","v":"  Projektová dokumentace (DOS/DSP)"},null,null,"ISPROFIN:"]
[null,"Majetek:",null,null,"SŽDC s.o.",null,null,null,"Označení (S-kód):"]
[null,"Zahájení realizace SO/PS:",null,null,"2018-04-01","Zpracovatel:",null,null,"Cenová úroveň:",null,2018]
[null,"Ukončení realizace SO/PS.",null,null,"2018-10-01","Obchodní název firmy/společnosti, v případě fyzické osoby podnikající  IČO","Starmon s.r.o.",null,"Datum zpracování:",null,"2018-01-24"]
[null,{"$f":"F2","v":"Sanace náspu Pastuchovice trati Plzeň - Žatec"},null,null,null,null,null,null,null,null,{"$f":"$I$5","v":"ISPROFIN:"},{"$f":"K5","v":0}]
[null,"Poř. číslo","Kód položky","Varianta","Cenová soustava","Název položky/dílu","MJ","Množství","Jednotková hmotnost","Celková hmotnost","Cena"]
[]
[null,null,null,null,null,null,null,null,null,null,"Jednotková","Celkem"]
["D","Díl:",1,null,null,"Zemní práce a kabelizace"]
["P",{"$f":"1+MAX($B$13:B13)","v":1},"13273",1,"OTSKP-ŽS","HLOUBENÍ RÝH ŠÍŘ DO 2M PAŽ I NEPAŽ TŘ. I ","m3",{"$f":"24+1089","v":1113},null,null,246,{"$f":"ROUND((ROUND(H14,3))*(ROUND(K14,2)),2)","v":273798}]
["PP",null,null,null,null,"Výměra: 2300*0,35*0,8+480*0,6*1,5+75*0,35*0,5+24=1113"]
["VV",null,null,null,null,"Technická specifikace položky odpovídá příslušné cenové soustavě."]
["P",{"$f":"1+MAX($B$13:B14)","v":2},"702111",1,"OTSKP-ŽS","KABELOVÝ ŽLAB ZEMNÍ VČETNĚ KRYTU SVĚTLÉ ŠÍŘKY DO 120 MM ","m",437,null,null,282,{"$f":"ROUND((ROUND(H17,3))*(ROUND(K17,2)),2)","v":123234}]
["PP",null,null,null,null,"Výměra: 270+27+75+65=437 Výměra obsahuje 10 % navýšení délky pro případ poškození při překládce."]
["VV",null,null,null,null,"Technická specifikace položky odpovídá příslušné cenové soustavě."]
["P",{"$f":"1+MAX($B$13:B17)","v":3},"702231",1,"OTSKP-ŽS","KABELOVÁ CHRÁNIČKA ZEMNÍ DĚLENÁ DN DO 100 MM ","m",1820,null,null,413,{"$f":"ROUND((ROUND(H20,3))*(ROUND(K20,2)),2)","v":751660}]
["PP",null,null,null,null,"Výměra: 2*(225+195+60+160+270)=1820"]
["VV",null,null,null,null,"Technická specifikace položky odpovídá příslušné cenové soustavě."]
["P",{"$f":"1+MAX($B$13:B20)","v":4},"702610",1,"OTSKP-ŽS","ODKRYTÍ A ZAKRYTÍ KABELOVÉHO ŽLABU ","m",{"$f":"H17","v":437},null,null,65,{"$f":"ROUND((ROUND(H23,3))*(ROUND(K23,2)),2)","v":28405}]
["PP",null,null,null,null,"Výměra položky 702111."]
["VV",null,null,null,null,"Technická specifikace položky odpovídá příslušné cenové soustavě."]
["P",{"$f":"1+MAX($B$13:B23)","v":5},"702620",1,"OTSKP-ŽS","ODKRYTÍ A ZAKRYTÍ KABELŮ KRYTÝCH FÓLIÍ, PÁSEM NEBO DESKOU ","m",2780,null,null,45,{"$f":"ROUND((ROUND(H26,3))*(ROUND(K26,2)),2)","v":125100}]
["PP",null,null,null,null,"Délka všech definitivních i provizorních kab. tras s výjimkou provizorní trasy v km 151,235"]
["VV",null,null,null,null,"Technická specifikace položky odpovídá příslušné cenové soustavě."]
["P",{"$f":"1+MAX($B$13:B28)","v":6},"702901",1,"OTSKP-ŽS","ZASYPÁNÍ KABELOVÉHO ŽLABU VRSTVOU Z PŘESÁTÉHO PÍSKU SVĚTLÉ ŠÍŘKY DO 120 MM ","m",{"$f":"H17","v":437},null,null,60,{"$f":"ROUND((ROUND(H29,3))*(ROUND(K29,2)),2)","v":26220}]
["PP",null,null,null,null,"Výměra položky 702111."]
["VV",null,null,null,null,"Technická specifikace položky odpovídá příslušné cenové soustavě."]
["P",{"$f":"1+MAX($B$13:B31)","v":7},"17411",1,"OTSKP-ŽS","ZÁSYP JAM A RÝH ZEMINOU SE ZHUTNĚNÍM.","m3",{"$f":"H14","v":1113},null,null,105,{"$f":"ROUND((ROUND(H32,3))*(ROUND(K32,2)),2)","v":116865}]
["PP",null,null,null,null,"Zasypání kabelových tras materiálem získaným hloubením rýh položkou 13273."]
["VV",null,null,null,null,"Technická specifikace položky odpovídá příslušné cenové soustavě."]
["P",{"$f":"1+MAX($B$13:B34)","v":8},"709611",1,"OTSKP-ŽS","DEMONTÁŽ KABELOVÉHO ŽLABU/LIŠTY VČETNĚ KRYTU ","m",345,null,null,109,{"$f":"ROUND((ROUND(H35,3))*(ROUND(K35,2)),2)","v":37605}]
["PP",null,null,null,null,"Délka provizorních kabelových tras."]
["VV",null,null,null,null,"Technická specifikace položky odpovídá příslušné cenové soustavě."]
["P",{"$f":"1+MAX($B$13:B37)","v":9},"709400",1,"OTSKP-ŽS","ZATAŽENÍ LANKA DO CHRÁNIČKY NEBO ŽLABU ","m",2520,null,null,33,{"$f":"ROUND((ROUND(H38,3))*(ROUND(K38,2)),2)","v":83160}]
["PP",null,null,null,null,"Zatažení lanka do HDPE neobsazené optotrubky."]
["VV",null,null,null,null,"Technická specifikace položky odpovídá příslušné cenové soustavě."]
["P",{"$f":"1+MAX($B$13:B40)","v":10},"742P13",1,"OTSKP-ŽS","ZATAŽENÍ KABELU DO CHRÁNIČKY - KABEL DO 4 KG/M ","m",{"$f":"H20","v":1820},null,null,57,{"$f":"ROUND((ROUND(H41,3))*(ROUND(K41,2)),2)","v":103740}]
["PP",null,null,null,null,"Dva kabely v délce 910 metrů."]
["VV",null,null,null,null,"Technická specifikace položky odpovídá příslušné cenové soustavě."]
["P",{"$f":"1+MAX($B$13:B43)","v":11},"75A217",1,"OTSKP-ŽS","ZATAŽENÍ A SPOJKOVÁNÍ KABELŮ DO 12 PÁRŮ - MONTÁŽ ","kmpár",{"$f":"7*1.4","v":9.7999999999999989},null,null,16030,{"$f":"ROUND((ROUND(H44,3))*(ROUND(K44,2)),2)","v":157094}]
["PP",null,null,null,null,"Zatažení a spojování 7p kabelu v délce 1400 m."]
["VV",null,null,null,null,"Technická specifikace položky odpovídá příslušné cenové soustavě."]
["P",{"$f":"1+MAX($B$13:B46)","v":12},"75A218",1,"OTSKP-ŽS","ZATAŽENÍ A SPOJKOVÁNÍ KABELŮ DO 12 PÁRŮ - DEMONTÁŽ ","kmpár",{"$f":"7*1.4","v":9.7999999999999989},null,null,4809,{"$f":"ROUND((ROUND(H47,3))*(ROUND(K47,2)),2)","v":47128.2}]
["PP",null,null,null,null,"Demontáž stávajícího 7p kabelu v délce 1400 m."]
["VV",null,null,null,null,"Technická specifikace položky odpovídá příslušné cenové soustavě."]
["P",{"$f":"1+MAX($B$13:B49)","v":13},"75I22X",1,"OTSKP-ŽS","KABEL ZEMNÍ DVOUPLÁŠŤOVÝ BEZ PANCÍŘE PRŮMĚRU ŽÍLY 0,8 MM - MONTÁŽ","m",{"$f":"2520+350+1400+350","v":4620},null,null,40,{"$f":"ROUND((ROUND(H50,3))*(ROUND(K50,2)),2)","v":184800}]
["PP",null,null,null,null,"Zatažení 5XN a 10XN kabelu."]
["VV",null,null,null,null,"Technická specifikace položky odpovídá příslušné cenové soustavě."]
["P",{"$f":"1+MAX($B$13:B52)","v":14},"75I22Y",1,"OTSKP-ŽS","KABEL ZEMNÍ DVOUPLÁŠŤOVÝ BEZ PANCÍŘE PRŮMĚRU ŽÍLY 0,8 MM - DEMONTÁŽ","m",{"$f":"H50","v":4620},null,null,31,{"$f":"ROUND((ROUND(H53,3))*(ROUND(K53,2)),2)","v":143220}]
["PP",null,null,null,null,"Demontáž stávajícího 5XN a 10XN kabelu."]
["VV",null,null,null,null,"Technická specifikace položky odpovídá příslušné cenové soustavě."]
["P",{"$f":"1+MAX($B$13:B55)","v":15},"75I71Yr1",1,"OTSKP-ŽS","KABEL HYBRIDNÍ TRAŤOVÝ KOMBINOVANÝ - DEMONTÁŽ","m",2520,null,null,31,{"$f":"ROUND((ROUND(H56,3))*(ROUND(K56,2)),2)","v":78120}]
["PP",null,null,null,null,"Demontáž stávajícího TKK v délce 2520 m."]
["VV",null,null,null,null,"Technická specifikace položky odpovídá příslušné cenové soustavě s výjimkou specifikace kabelu."]
["P",{"$f":"1+MAX($B$13:B58)","v":16},"75I833",1,"OTSKP-ŽS","KABEL OPTICKÝ MIKROKABEL DO 72 VLÁKEN","m",{"$f":"48*2.52","v":120.96000000000001},null,null,1942,{"$f":"ROUND((ROUND(H59,3))*(ROUND(K59,2)),2)","v":234904.32000000001}]
["PP",null,null,null,null,"Dodávka 48vl. kabelu."]
["VV",null,null,null,null,"Technická specifikace položky odpovídá příslušné cenové soustavě."]
["P",{"$f":"1+MAX($B$13:B61)","v":17},"75I83X",1,"OTSKP-ŽS","KABEL OPTICKÝ MIKROKABEL - MONTÁŽ","m",2520,null,null,62,{"$f":"ROUND((ROUND(H62,3))*(ROUND(K62,2)),2)","v":156240}]
["PP",null,null,null,null,"Montáž 48vl. kabelu."]
["VV",null,null,null,null,"Technická specifikace položky odpovídá příslušné cenové soustavě."]
["P",{"$f":"1+MAX($B$13:B64)","v":18},"75II71",1,"OTSKP-ŽS","SPOJKA OPTICKÁ DO 72 VLÁKEN","kus",2,null,null,45172,{"$f":"ROUND((ROUND(H65,3))*(ROUND(K65,2)),2)","v":90344}]
["PP",null,null,null,null,"Naspojkování optického kabelu ve stávajících kabelových komorách."]
["VV",null,null,null,null,"Technická specifikace položky odpovídá příslušné cenové soustavě."]
["P",{"$f":"1+MAX($B$13:B67)","v":19},"75II7X",1,"OTSKP-ŽS","SPOJKA OPTICKÁ - MONTÁŽ","kus",2,null,null,35320,{"$f":"ROUND((ROUND(H68,3))*(ROUND(K68,2)),2)","v":70640}]
["PP",null,null,null,null,"Naspojkování optického kabelu ve stávajících kabelových komorách."]
["VV",null,null,null,null,"Technická specifikace položky odpovídá příslušné cenové soustavě."]
["P",{"$f":"1+MAX($B$13:B70)","v":20},"75I911",1,"OTSKP-ŽS","OPTOTRUBKA HDPE PRŮMĚRU DO 40 MM","m",{"$f":"2*2520","v":5040},null,null,52,{"$f":"ROUND((ROUND(H71,3))*(ROUND(K71,2)),2)","v":262080}]
["PP",null,null,null,null,"Dvě optotrubky 40 mm o délce 2520 m."]
["VV",null,null,null,null,"Technická specifikace položky odpovídá příslušné cenové soustavě."]
["P",{"$f":"1+MAX($B$13:B73)","v":21},"75I91X",1,"OTSKP-ŽS","OPTOTRUBKA HDPE - MONTÁŽ","m",{"$f":"H71","v":5040},null,null,40,{"$f":"ROUND((ROUND(H74,3))*(ROUND(K74,2)),2)","v":201600}]
["PP",null,null,null,null,"Dvě optotrubky 40 mm o délce 2520 m."]
["VV",null,null,null,null,"Technická specifikace položky odpovídá příslušné cenové soustavě."]
["P",{"$f":"1+MAX($B$13:B76)","v":22},"75IA11",1,"OTSKP-ŽS","OPTOTRUBKOVÁ SPOJKA PRŮMĚRU DO 40 MM","kus",12,null,null,162,{"$f":"ROUND((ROUND(H77,3))*(ROUND(K77,2)),2)","v":1944}]
["PP",null,null,null,null,"Spojkování dvou optotrubek v 7 bodech. Ve dvou jen na jedné trubce."]
["VV",null,null,null,null,"Technická specifikace položky odpovídá příslušné cenové soustavě."]
["P",{"$f":"1+MAX($B$13:B79)","v":23},"75IA1X",1,"OTSKP-ŽS","OPTOTRUBKOVÁ SPOJKA - MONTÁŽ","kus",12,null,null,180,{"$f":"ROUND((ROUND(H80,3))*(ROUND(K80,2)),2)","v":2160}]
["PP",null,null,null,null,"Spojkování dvou optotrubek v 7 bodech. Ve dvou jen na jedné trubce."]
["VV",null,null,null,null,"Technická specifikace položky odpovídá příslušné cenové soustavě."]
["P",{"$f":"1+MAX($B$13:B82)","v":24},"75IA61",1,"OTSKP-ŽS","OPTOTRUBKOVÁ KONCOVKA S VENTILKEM PRŮMĚRU DO 40 MM","kus",2,null,null,350,{"$f":"ROUND((ROUND(H83,3))*(ROUND(K83,2)),2)","v":700}]
["PP",null,null,null,null,"Ukončení rezervní optotrubky."]
["VV",null,null,null,null,"Technická specifikace položky odpovídá příslušné cenové soustavě."]
["P",{"$f":"1+MAX($B$13:B85)","v":25},"75IA6X",1,"OTSKP-ŽS","OPTOTRUBKOVÁ KONCOVKA S VENTILKEM- MONTÁŽ","kus",2,null,null,95,{"$f":"ROUND((ROUND(H86,3))*(ROUND(K86,2)),2)","v":190}]
["PP",null,null,null,null,"Ukončení rezervní optotrubky."]
["VV",null,null,null,null,"Technická specifikace položky odpovídá příslušné cenové soustavě."]
["P",{"$f":"1+MAX($B$13:B88)","v":26},"75ID21",1,"OTSKP-ŽS","PLASTOVÁ ZEMNÍ KOMORA PRO ULOŽENÍ SPOJKY - DODÁVKA","kus",4,null,null,19750,{"$f":"ROUND((ROUND(H89,3))*(ROUND(K89,2)),2)","v":79000}]
["PP",null,null,null,null,"Uložení rezervy a případné spojky ve 4 bodech kabelové trasy."]
["VV",null,null,null,null,"Technická specifikace položky odpovídá příslušné cenové soustavě."]
["P",{"$f":"1+MAX($B$13:B91)","v":27},"75D2X",1,"OTSKP-ŽS","PLASTOVÁ ZEMNÍ KOMORA PRO ULOŽENÍ SPOJKY - MONTÁŽ","kus",4,null,null,4000,{"$f":"ROUND((ROUND(H92,3))*(ROUND(K92,2)),2)","v":16000}]
["PP",null,null,null,null,"Uložení rezervy a případné spojky ve 4 bodech kabelové trasy."]
["VV",null,null,null,null,"Technická specifikace položky odpovídá příslušné cenové soustavě."]
["P",{"$f":"1+MAX($B$13:B94)","v":28},"75A111",1,"OTSKP-ŽS","KABEL METALICKÝ DVOUPLÁŠŤOVÝ DO 12 PÁRŮ - DODÁVKA ","kmpár",{"$f":"1.4*7","v":9.7999999999999989},null,null,12227,{"$f":"ROUND((ROUND(H95,3))*(ROUND(K95,2)),2)","v":119824.6}]
["PP",null,null,null,null,"7p kabel v délce náhrady kabelu."]
["VV",null,null,null,null,"Technická specifikace položky odpovídá příslušné cenové soustavě."]
["P",{"$f":"1+MAX($B$13:B97)","v":29},"75I221",1,"OTSKP-ŽS","KABEL ZEMNÍ DVOUPLÁŠŤOVÝ BEZ PANCÍŘE PRŮMĚRU ŽÍLY 0,8 MM DO 5XN","km4",{"$f":"5*1.4","v":7},null,null,19858,{"$f":"ROUND((ROUND(H98,3))*(ROUND(K98,2)),2)","v":139006}]
["PP",null,null,null,null,"5XN sdělovací kabel v celé délce 2520 m."]
["VV",null,null,null,null,"Technická specifikace položky odpovídá příslušné cenové soustavě."]
["P",{"$f":"1+MAX($B$13:B100)","v":30},"75I222",1,"OTSKP-ŽS","KABEL ZEMNÍ DVOUPLÁŠŤOVÝ BEZ PANCÍŘE PRŮMĚRU ŽÍLY 0,8 MM DO 25XN","km4",{"$f":"2.52*10","v":25.2},null,null,8675,{"$f":"ROUND((ROUND(H101,3))*(ROUND(K101,2)),2)","v":218610}]
["PP",null,null,null,null,"10XN sdělovací kabel v celé délce 2520 m."]
["VV",null,null,null,null,"Technická specifikace položky odpovídá příslušné cenové soustavě."]
[null,{"$f":"1+MAX($B$13:B103)","v":31},"14173",1,"OTSKP-ŽS","PROTLAČOVÁNÍ POTRUBÍ Z PLAST HMOT DN DO 200 MM","m",66,null,null,2680,{"$f":"ROUND((ROUND(H104,3))*(ROUND(K104,2)),2)","v":176880}]
[null,null,null,null,null,"Podchod pod náspem v km 151,123."]
[null,null,null,null,null,"Technická specifikace položky odpovídá příslušné cenové soustavě."]
[null,{"$f":"1+MAX($B$13:B106)","v":32},"03170",1,"OTSKP-ŽS","ZAŘÍZENÍ STAVENIŠTĚ - KOMUNIKACE A ZPEV PLOCHY","kpl",1,null,null,487300,{"$f":"ROUND((ROUND(H107,3))*(ROUND(K107,2)),2)","v":487300}]
[null,null,null,null,null,"Zakrytí provizorní kabelové trasy panely.. Šířka zakrytí 5 metrů, délka úseku 220 metrů.."]
[null,null,null,null,null,"Technická specifikace položky odpovídá příslušné cenové soustavě."]
["P",{"$f":"1+MAX($B$13:B109)","v":33},"75IJ22",1,"OTSKP-ŽS","MĚŘENÍ ZKRÁCENÉ ZÁVĚREČNÉ DÁLKOVÉHO KABELU V JEDNOM SMĚRU ZA PROVOZU",4,30,null,null,991,{"$f":"ROUND((ROUND(H110,3))*(ROUND(K110,2)),2)","v":29730}]
["PP",null,null,null,null,"5XN a 10XN kabely. Měření dvakrát."]
["VV",null,null,null,null,"Technická specifikace položky odpovídá příslušné cenové soustavě."]
["P",{"$f":"1+MAX($B$13:B112)","v":34},"75IK11",1,"OTSKP-ŽS","MĚŘENÍ STÁVAJÍCÍHO OPTICKÉHO KABELU","vláken.",48,null,null,1250,{"$f":"ROUND((ROUND(H113,3))*(ROUND(K113,2)),2)","v":60000}]
["PP",null,null,null,null,"Optický kabel."]
["VV",null,null,null,null,"Technická specifikace položky odpovídá příslušné cenové soustavě."]
["D","Součet","za  Díl",null,null,"Zemní práce a kabelizace",null,null,null,null,null,{"$f":"SUM(L14:L115)","v":4627302.12}]

{"sheet":"Kategorie monitoringu","index":1,"n_rows":25,"n_cols":2,"rows_kept":25,"cut":false,"hidden":true,"merged":[]}
["E.1.1.1","Železniční svršek"]
["E.1.1.2","Železniční spodek"]
["E.1.2","Nástupiště"]
["E.1.3","Železniční přejezdy"]
["E.1.4","Mosty, propustky, zdi"]
["E.1.5","Ostatní inženýrské objekty"]
["E.1.6","Potrubní vedení"]
["E.1.7","Železniční tunely"]
["E.1.8","Pozemní komunikace"]
["E.1.9","Kabelovody, kolektory"]
["E.1.10","Protihlukové objekty"]
["E.2","Pozemní stavební objekty"]
["E.3.1","Trakční vedení"]
["E.3.2","Napájecí stanice (měnírna, trakční transformovna) – stavební část"]
["E.3.3","Spínací stanice – stavební část"]
["E.3.4","Ohřev výměn (elektrický - EOV, plynový - POV)"]
["E.3.5","Elektrické předtápěcí zařízení (EPZ)"]
["E.3.6","Rozvodny vn, nn, osvětlení a dálkové ovládání odpojovačů"]
["E.3.7","Ukolejnění kovových konstrukcí"]
["E.3.8","Vnější uzemnění"]
["E.3.9","Ostatní kabelizace"]
["D.1","Železniční zabezpečovací zařízení"]
["D.2","Železniční sdělovací zařízení"]
["D.3","Silnoproudá technologie včetně DŘT"]
["D.4","Ostatní technologická zařízení"]

{"sheet":"hide","index":2,"n_rows":8,"n_cols":12,"rows_kept":8,"cut":false,"hidden":true,"merged":[]}
["P",null,null,1,null,null,null,null,null,null,null,{"$f":"ROUND((ROUND(H1,3))*(ROUND(K1,2)),2)","v":0}]
["PP"]
["VV"]
["TS"]
[]
[null,"Saoučet za díl:",null,null,null,"Zemní práce"]
[]
["DD","Díl:",null,null,null,"Název dílu"]